[Event "*** SCC Grand Prix: Titled Tuesday Blitz"]
[Site "Chess.com"]
[Date "2020.06.23"]
[Round "8"]
[White "Chepaschess"]
[Black "Parhamov"]
[Result "1/2-1/2"]
[WhiteElo "2859"]
[BlackElo "3064"]
[TimeControl "180+1"]
[EndTime "11:33:23 PDT"]
[Termination "Game drawn by agreement"]

1. e4 {[%clk 0:03:00.9]} 1... c5 {[%clk 0:02:58.9]} 2. Nf3 {[%clk 0:02:59.8]}
2... Nc6 {[%clk 0:02:57.7]} 3. Bb5 {[%clk 0:02:59.8]} 3... e6 {[%clk 0:02:57.3]}
4. O-O {[%clk 0:02:59.4]} 4... Nge7 {[%clk 0:02:56.1]} 5. Re1 {[%clk 0:02:59.4]}
5... a6 {[%clk 0:02:55.6]} 6. Bf1 {[%clk 0:02:59.9]} 6... d5 {[%clk 0:02:55.2]}
7. exd5 {[%clk 0:03:00.8]} 7... Nxd5 {[%clk 0:02:54.5]} 8. d4 {[%clk 0:03:01.3]}
8... Nf6 {[%clk 0:02:49.4]} 9. Be3 {[%clk 0:03:01.9]} 9... cxd4 {[%clk
0:02:39.5]} 10. Nxd4 {[%clk 0:03:01.1]} 10... Bd7 {[%clk 0:02:37.6]} 11. c4
{[%clk 0:02:55.4]} 11... Qc7 {[%clk 0:02:33.2]} 12. Nc3 {[%clk 0:02:51.1]} 12...
Be7 {[%clk 0:02:30.5]} 13. h3 {[%clk 0:02:48.6]} 13... O-O {[%clk 0:02:20.3]}
14. Nf3 {[%clk 0:02:47.5]} 14... Rac8 {[%clk 0:02:13.1]} 15. a3 {[%clk
0:02:22.6]} 15... Na5 {[%clk 0:02:10.6]} 16. Nd2 {[%clk 0:02:14.9]} 16... Rfd8
{[%clk 0:02:09.7]} 17. b4 {[%clk 0:02:11.7]} 17... Nc6 {[%clk 0:02:01.3]} 18.
Nf3 {[%clk 0:02:11.7]} 18... h6 {[%clk 0:01:56.2]} 19. Qb3 {[%clk 0:02:07.1]}
19... Be8 {[%clk 0:01:53.7]} 20. Rac1 {[%clk 0:02:06]} 20... Bd6 {[%clk
0:01:50.1]} 21. Na4 {[%clk 0:02:00.2]} 21... Ne5 {[%clk 0:01:41.9]} 22. Nxe5
{[%clk 0:01:56.4]} 22... Bxa4 {[%clk 0:01:42]} 23. Qxa4 {[%clk 0:01:52.9]} 23...
Bxe5 {[%clk 0:01:42.9]} 24. Rcd1 {[%clk 0:01:48.7]} 24... Rxd1 {[%clk
0:01:41.2]} 25. Rxd1 {[%clk 0:01:48]} 25... Rd8 {[%clk 0:01:41]} 26. Rxd8+
{[%clk 0:01:45]} 26... Qxd8 {[%clk 0:01:41.9]} 27. g3 {[%clk 0:01:44.7]} 27...
Ne4 {[%clk 0:01:33.5]} 28. Bg2 {[%clk 0:01:41.3]} 28... Nc3 {[%clk 0:01:33.3]}
29. Qc2 {[%clk 0:01:36.7]} 29... a5 {[%clk 0:01:33.6]} 30. c5 {[%clk 0:01:27.7]}
30... axb4 {[%clk 0:01:33.7]} 31. axb4 {[%clk 0:01:27.6]} 31... Qd7 {[%clk
0:01:34.1]} 32. Qd2 {[%clk 0:01:25.1]} 32... Nd5 {[%clk 0:01:32.9]} 33. b5
{[%clk 0:01:19.9]} 33... Qxb5 {[%clk 0:01:31.2]} 34. Bxd5 {[%clk 0:01:19.9]}
34... exd5 {[%clk 0:01:31.1]} 35. Qxd5 {[%clk 0:01:20.8]} 35... Bf6 {[%clk
0:01:30.7]} 36. Kg2 {[%clk 0:01:16.9]} 1/2-1/2

[Event "*** SCC Grand Prix: Titled Tuesday Blitz"]
[Site "Chess.com"]
[Date "2020.06.23"]
[Round "8"]
[White "LuckIsMySkill"]
[Black "realmadridtv"]
[Result "1-0"]
[WhiteElo "2724"]
[BlackElo "2488"]
[TimeControl "180+1"]
[EndTime "11:33:26 PDT"]
[Termination "LuckIsMySkill won by resignation"]

1. f4 {[%clk 0:03:00.9]} 1... g6 {[%clk 0:02:56.8]} 2. Nf3 {[%clk 0:03:00.7]}
2... Bg7 {[%clk 0:02:54.8]} 3. e4 {[%clk 0:03:00.7]} 3... d5 {[%clk 0:02:53.1]}
4. e5 {[%clk 0:03:00.5]} 4... c5 {[%clk 0:02:53]} 5. c3 {[%clk 0:02:56.5]} 5...
Nc6 {[%clk 0:02:50.8]} 6. h3 {[%clk 0:02:54.7]} 6... f6 {[%clk 0:02:45.7]} 7. d4
{[%clk 0:02:53.6]} 7... Bf5 {[%clk 0:02:43.3]} 8. Be3 {[%clk 0:02:45.9]} 8...
cxd4 {[%clk 0:02:26.5]} 9. Nxd4 {[%clk 0:02:41.8]} 9... Nxd4 {[%clk 0:02:19.1]}
10. cxd4 {[%clk 0:02:41]} 10... Bd7 {[%clk 0:02:05]} 11. Nc3 {[%clk 0:02:30]}
11... e6 {[%clk 0:02:04.2]} 12. Nb5 {[%clk 0:02:22.6]} 12... Bxb5 {[%clk
0:01:53.7]} 13. Bxb5+ {[%clk 0:02:21.1]} 13... Kf7 {[%clk 0:01:54.3]} 14. O-O
{[%clk 0:02:19.7]} 14... Ne7 {[%clk 0:01:53.3]} 15. Rc1 {[%clk 0:02:17.9]} 15...
Qb6 {[%clk 0:01:50.8]} 16. Qb3 {[%clk 0:02:14.5]} 16... Rhc8 {[%clk 0:01:27.1]}
17. Bf2 {[%clk 0:02:06.3]} 17... Rc7 {[%clk 0:01:15.4]} 18. Be8+ {[%clk
0:01:59.8]} 18... Kxe8 {[%clk 0:01:03.6]} 19. Qxb6 {[%clk 0:01:58.1]} 19... axb6
{[%clk 0:01:01.2]} 20. Rxc7 {[%clk 0:01:56.8]} 20... Rxa2 {[%clk 0:00:59.7]} 21.
Rxb7 {[%clk 0:01:49.2]} 21... Rxb2 {[%clk 0:00:59.7]} 22. Ra1 {[%clk 0:01:49]}
22... Rc2 {[%clk 0:00:46.5]} 23. Bh4 {[%clk 0:01:42.1]} 23... g5 {[%clk
0:00:38.4]} 24. Raa7 {[%clk 0:01:35.1]} 1-0

[Event "*** SCC Grand Prix: Titled Tuesday Blitz"]
[Site "Chess.com"]
[Date "2020.06.23"]
[Round "8"]
[White "Ural_bogatyr"]
[Black "KingChess345"]
[Result "1-0"]
[WhiteElo "2322"]
[BlackElo "2170"]
[TimeControl "180+1"]
[EndTime "11:33:28 PDT"]
[Termination "Ural_bogatyr won by resignation"]

1. e4 {[%clk 0:03:00.9]} 1... c5 {[%clk 0:02:59.2]} 2. Nf3 {[%clk 0:03:00.6]}
2... Nc6 {[%clk 0:02:59.7]} 3. d4 {[%clk 0:03:00.4]} 3... cxd4 {[%clk
0:03:00.6]} 4. Nxd4 {[%clk 0:03:01.3]} 4... Nf6 {[%clk 0:03:01]} 5. Nc3 {[%clk
0:03:01.5]} 5... e5 {[%clk 0:03:01.6]} 6. Nf5 {[%clk 0:03:01.1]} 6... d5 {[%clk
0:03:00.4]} 7. exd5 {[%clk 0:03:02]} 7... Bxf5 {[%clk 0:03:00.4]} 8. dxc6 {[%clk
0:03:02.4]} 8... bxc6 {[%clk 0:02:58.3]} 9. Qf3 {[%clk 0:03:01.8]} 9... Qd7
{[%clk 0:02:50.2]} 10. Ba6 {[%clk 0:02:49.7]} 10... Be7 {[%clk 0:02:35.4]} 11.
Bb7 {[%clk 0:02:40.5]} 11... e4 {[%clk 0:02:29.5]} 12. Qf4 {[%clk 0:02:24.5]}
12... Qxb7 {[%clk 0:01:48.9]} 13. Qxf5 {[%clk 0:02:23.2]} 13... O-O {[%clk
0:01:44.1]} 14. O-O {[%clk 0:02:21.4]} 14... Rfe8 {[%clk 0:01:32.7]} 15. Nxe4
{[%clk 0:02:15.8]} 15... Nxe4 {[%clk 0:01:32.1]} 16. Qxe4 {[%clk 0:02:16.7]}
16... Bf6 {[%clk 0:01:32.1]} 17. Qf3 {[%clk 0:02:13.6]} 17... Rab8 {[%clk
0:01:19.5]} 18. Bf4 {[%clk 0:02:02.5]} 18... Bxb2 {[%clk 0:00:50.9]} 19. Rab1
{[%clk 0:01:57.4]} 19... Rbd8 {[%clk 0:00:50.5]} 20. Bc1 {[%clk 0:01:54.9]}
20... Qa6 {[%clk 0:00:38.3]} 21. Bxb2 {[%clk 0:01:51.3]} 21... Qxa2 {[%clk
0:00:35.5]} 22. Qxc6 {[%clk 0:01:41.8]} 22... Rc8 {[%clk 0:00:33.4]} 23. Qd7
{[%clk 0:01:40.7]} 23... Red8 {[%clk 0:00:29.6]} 24. Qg4 {[%clk 0:01:39.6]}
24... g6 {[%clk 0:00:19.9]} 25. Qf4 {[%clk 0:01:36.9]} 25... f5 {[%clk
0:00:16.9]} 26. Qe5 {[%clk 0:01:35.6]} 1-0

[Event "*** SCC Grand Prix: Titled Tuesday Blitz"]
[Site "Chess.com"]
[Date "2020.06.23"]
[Round "8"]
[White "Stronger1799"]
[Black "dopolian"]
[Result "1-0"]
[WhiteElo "2479"]
[BlackElo "2355"]
[TimeControl "180+1"]
[EndTime "11:33:31 PDT"]
[Termination "Stronger1799 won on time"]

1. e4 {[%clk 0:03:00.9]} 1... e5 {[%clk 0:02:59.5]} 2. Nf3 {[%clk 0:03:00.8]}
2... Nc6 {[%clk 0:02:59.5]} 3. Bb5 {[%clk 0:03:00.6]} 3... a6 {[%clk 0:03:00]}
4. Ba4 {[%clk 0:03:00.9]} 4... Nf6 {[%clk 0:03:00.3]} 5. d4 {[%clk 0:03:01.6]}
5... exd4 {[%clk 0:02:58.3]} 6. O-O {[%clk 0:03:02]} 6... Nxe4 {[%clk
0:02:22.1]} 7. Re1 {[%clk 0:03:01.2]} 7... d5 {[%clk 0:02:11.8]} 8. Nxd4 {[%clk
0:03:01.5]} 8... Bc5 {[%clk 0:01:22]} 9. Bxc6+ {[%clk 0:02:24.7]} 9... bxc6
{[%clk 0:01:21.4]} 10. f3 {[%clk 0:02:25.6]} 10... O-O {[%clk 0:00:26.9]} 11.
fxe4 {[%clk 0:02:24.9]} 11... dxe4 {[%clk 0:00:27.8]} 12. Be3 {[%clk 0:02:24.8]}
12... f5 {[%clk 0:00:18]} 13. Nc3 {[%clk 0:01:55.9]} 13... Qf6 {[%clk
0:00:15.6]} 14. Qe2 {[%clk 0:01:34.8]} 14... Rd8 {[%clk 0:00:14.5]} 15. Qc4+
{[%clk 0:01:34.4]} 15... Kh8 {[%clk 0:00:05.9]} 16. Qxc5 {[%clk 0:01:34.4]}
16... f4 {[%clk 0:00:06.2]} 17. Nxe4 {[%clk 0:01:34.3]} 17... Qg6 {[%clk
0:00:01.9]} 18. Bxf4 {[%clk 0:01:32.4]} 18... Bh3 {[%clk 0:00:02.1]} 19. Ng5
{[%clk 0:01:32.3]} 19... Bd7 {[%clk 0:00:01]} 20. Re7 {[%clk 0:01:28.9]} 20...
Rf8 {[%clk 0:00:01.5]} 21. Rf1 {[%clk 0:01:27.3]} 1-0

[Event "*** SCC Grand Prix: Titled Tuesday Blitz"]
[Site "Chess.com"]
[Date "2020.06.23"]
[Round "8"]
[White "otrov-11"]
[Black "gumimis"]
[Result "1-0"]
[WhiteElo "2389"]
[BlackElo "2161"]
[TimeControl "180+1"]
[EndTime "11:33:35 PDT"]
[Termination "otrov-11 won on time"]

1. d4 {[%clk 0:03:00.9]} 1... Nf6 {[%clk 0:02:59.1]} 2. c4 {[%clk 0:03:00.8]}
2... g6 {[%clk 0:02:58.6]} 3. Nc3 {[%clk 0:03:00.7]} 3... Bg7 {[%clk 0:02:58.9]}
4. e4 {[%clk 0:03:00.6]} 4... O-O {[%clk 0:02:58.6]} 5. f4 {[%clk 0:03:01.1]}
5... d6 {[%clk 0:02:57.9]} 6. Nf3 {[%clk 0:03:01.3]} 6... Na6 {[%clk 0:02:58.5]}
7. Bd3 {[%clk 0:03:00.8]} 7... e5 {[%clk 0:02:58.6]} 8. fxe5 {[%clk 0:03:01.2]}
8... dxe5 {[%clk 0:02:58.9]} 9. d5 {[%clk 0:03:02.1]} 9... Nc5 {[%clk
0:02:56.1]} 10. Bc2 {[%clk 0:03:02.4]} 10... a5 {[%clk 0:02:55.6]} 11. Be3
{[%clk 0:03:00.7]} 11... Qe7 {[%clk 0:01:32.6]} 12. O-O {[%clk 0:02:51.8]} 12...
Ng4 {[%clk 0:01:23.7]} 13. Bg5 {[%clk 0:02:49.3]} 13... f6 {[%clk 0:01:23.4]}
14. Bh4 {[%clk 0:02:48.9]} 14... Ne3 {[%clk 0:01:18.2]} 15. Qe2 {[%clk
0:02:45.4]} 15... Nxf1 {[%clk 0:01:18.1]} 16. Rxf1 {[%clk 0:02:46.3]} 16... Bd7
{[%clk 0:01:07.9]} 17. Bf2 {[%clk 0:02:40.3]} 17... b6 {[%clk 0:01:04.7]} 18.
Be3 {[%clk 0:02:37.8]} 18... f5 {[%clk 0:01:02.9]} 19. exf5 {[%clk 0:02:32.7]}
19... gxf5 {[%clk 0:00:58.8]} 20. Bg5 {[%clk 0:02:31.8]} 20... Qd6 {[%clk
0:00:49.3]} 21. Qd2 {[%clk 0:02:27]} 21... e4 {[%clk 0:00:39.4]} 22. Nd4 {[%clk
0:02:25.8]} 22... h6 {[%clk 0:00:28.2]} 23. Bf4 {[%clk 0:02:25.1]} 23... Qf6
{[%clk 0:00:27.4]} 24. Nde2 {[%clk 0:02:17.1]} 24... Na6 {[%clk 0:00:18.8]} 25.
Be3 {[%clk 0:02:16.1]} 25... Rad8 {[%clk 0:00:09.1]} 26. Nxe4 {[%clk 0:02:15.1]}
26... Qe5 {[%clk 0:00:08.2]} 27. N4c3 {[%clk 0:02:14.4]} 27... Rde8 {[%clk
0:00:07.5]} 28. Bd4 {[%clk 0:02:14.6]} 28... Qe7 {[%clk 0:00:05.1]} 29. Bxg7
{[%clk 0:02:12.5]} 29... Qxg7 {[%clk 0:00:05.6]} 30. Nd4 {[%clk 0:02:11]} 30...
Nb4 {[%clk 0:00:04.7]} 31. Bb1 {[%clk 0:02:09.3]} 31... f4 {[%clk 0:00:03]} 32.
a3 {[%clk 0:02:07.3]} 32... Na6 {[%clk 0:00:03]} 33. Nf3 {[%clk 0:02:02.1]} 1-0

[Event "*** SCC Grand Prix: Titled Tuesday Blitz"]
[Site "Chess.com"]
[Date "2020.06.23"]
[Round "8"]
[White "talaicito"]
[Black "CroissantNeuf"]
[Result "0-1"]
[WhiteElo "2119"]
[BlackElo "2382"]
[TimeControl "180+1"]
[EndTime "11:33:37 PDT"]
[Termination "CroissantNeuf won by checkmate"]

1. d4 {[%clk 0:03:00.9]} 1... Nf6 {[%clk 0:02:59.5]} 2. Nc3 {[%clk 0:03:00]}
2... d5 {[%clk 0:02:58.9]} 3. Bf4 {[%clk 0:02:59.4]} 3... a6 {[%clk 0:02:58.7]}
4. e3 {[%clk 0:02:59.3]} 4... e6 {[%clk 0:02:59.2]} 5. Nf3 {[%clk 0:02:59.1]}
5... Bb4 {[%clk 0:02:59.6]} 6. Bd3 {[%clk 0:02:57.8]} 6... c5 {[%clk 0:02:59]}
7. dxc5 {[%clk 0:02:56.7]} 7... Nbd7 {[%clk 0:02:56.3]} 8. O-O {[%clk
0:02:23.9]} 8... Bxc3 {[%clk 0:02:51.3]} 9. bxc3 {[%clk 0:02:23.3]} 9... Nxc5
{[%clk 0:02:51.9]} 10. c4 {[%clk 0:02:10.3]} 10... Nxd3 {[%clk 0:02:50.7]} 11.
cxd3 {[%clk 0:02:03]} 11... O-O {[%clk 0:02:47.2]} 12. Rb1 {[%clk 0:01:42.9]}
12... dxc4 {[%clk 0:02:44.3]} 13. dxc4 {[%clk 0:01:42.5]} 13... Qxd1 {[%clk
0:02:31.4]} 14. Rfxd1 {[%clk 0:01:41.8]} 14... Ne4 {[%clk 0:02:21.7]} 15. Rb6
{[%clk 0:01:31]} 15... f6 {[%clk 0:02:16.4]} 16. Bd6 {[%clk 0:01:24.7]} 16...
Rd8 {[%clk 0:02:12]} 17. Rd4 {[%clk 0:01:17.4]} 17... Nc3 {[%clk 0:01:52.7]} 18.
Rd2 {[%clk 0:00:29.1]} 18... e5 {[%clk 0:01:40.6]} 19. c5 {[%clk 0:00:24.4]}
19... Ne4 {[%clk 0:01:16.9]} 20. Rc2 {[%clk 0:00:20.6]} 20... Bf5 {[%clk
0:01:09.6]} 21. Nh4 {[%clk 0:00:19.2]} 21... Nxd6 {[%clk 0:01:06.8]} 22. Nxf5
{[%clk 0:00:18.9]} 22... Nxf5 {[%clk 0:01:06.4]} 23. Rxb7 {[%clk 0:00:19.8]}
23... Rd1# {[%clk 0:01:06]} 0-1

[Event "*** SCC Grand Prix: Titled Tuesday Blitz"]
[Site "Chess.com"]
[Date "2020.06.23"]
[Round "8"]
[White "jlandaw"]
[Black "albano87"]
[Result "0-1"]
[WhiteElo "2539"]
[BlackElo "2389"]
[TimeControl "180+1"]
[EndTime "11:33:39 PDT"]
[Termination "albano87 won by resignation"]

1. e4 {[%clk 0:03:00.9]} 1... c5 {[%clk 0:02:58]} 2. Nc3 {[%clk 0:03:00.9]} 2...
a6 {[%clk 0:02:56.9]} 3. g3 {[%clk 0:03:01]} 3... b5 {[%clk 0:02:56.8]} 4. Bg2
{[%clk 0:03:01.5]} 4... Bb7 {[%clk 0:02:56.9]} 5. d3 {[%clk 0:03:01.8]} 5... e6
{[%clk 0:02:56.6]} 6. f4 {[%clk 0:03:00.5]} 6... d5 {[%clk 0:02:33.1]} 7. Nh3
{[%clk 0:02:58.5]} 7... Nf6 {[%clk 0:02:31.2]} 8. e5 {[%clk 0:02:55.5]} 8...
Nfd7 {[%clk 0:02:30.9]} 9. Ne2 {[%clk 0:02:49.8]} 9... Qc7 {[%clk 0:02:29.2]}
10. c3 {[%clk 0:02:45.5]} 10... Nc6 {[%clk 0:02:26.8]} 11. O-O {[%clk 0:02:45]}
11... Be7 {[%clk 0:02:23.8]} 12. d4 {[%clk 0:02:38.1]} 12... b4 {[%clk
0:02:23.1]} 13. f5 {[%clk 0:02:35.3]} 13... exf5 {[%clk 0:02:09.6]} 14. Rxf5
{[%clk 0:02:21.8]} 14... Nb6 {[%clk 0:01:58.3]} 15. Rf1 {[%clk 0:01:18]} 15...
Rc8 {[%clk 0:01:45.3]} 16. Nef4 {[%clk 0:01:12.6]} 16... cxd4 {[%clk 0:01:42.1]}
17. Nxd5 {[%clk 0:00:34.5]} 17... Nxd5 {[%clk 0:01:39.4]} 18. Bxd5 {[%clk
0:00:35.4]} 18... O-O {[%clk 0:01:26.1]} 19. cxd4 {[%clk 0:00:23.7]} 19... Nxd4
{[%clk 0:01:26]} 20. Bxb7 {[%clk 0:00:11.2]} 20... Qxb7 {[%clk 0:01:24.8]} 21.
Be3 {[%clk 0:00:11.7]} 21... Nc2 {[%clk 0:01:17.2]} 22. Qd3 {[%clk 0:00:10.2]}
22... Nxe3 {[%clk 0:01:14.6]} 0-1

[Event "*** SCC Grand Prix: Titled Tuesday Blitz"]
[Site "Chess.com"]
[Date "2020.06.23"]
[Round "8"]
[White "Logman74"]
[Black "abykhovsky"]
[Result "0-1"]
[WhiteElo "2471"]
[BlackElo "2688"]
[TimeControl "180+1"]
[EndTime "11:33:41 PDT"]
[Termination "abykhovsky won on time"]

1. e4 {[%clk 0:03:00.9]} 1... e6 {[%clk 0:02:56.9]} 2. d4 {[%clk 0:03:00]} 2...
d5 {[%clk 0:02:49.4]} 3. Nc3 {[%clk 0:02:58.9]} 3... Bb4 {[%clk 0:02:45.8]} 4.
e5 {[%clk 0:02:58.4]} 4... c5 {[%clk 0:02:42]} 5. a3 {[%clk 0:02:58.6]} 5...
Bxc3+ {[%clk 0:02:39.1]} 6. bxc3 {[%clk 0:02:59.2]} 6... Ne7 {[%clk 0:02:39.6]}
7. Nf3 {[%clk 0:02:58]} 7... Qa5 {[%clk 0:02:38.1]} 8. Bd2 {[%clk 0:02:56.6]}
8... Qa4 {[%clk 0:02:38.2]} 9. Qb1 {[%clk 0:02:49.8]} 9... c4 {[%clk 0:02:31.5]}
10. g3 {[%clk 0:02:44.2]} 10... Nd7 {[%clk 0:02:26.1]} 11. h4 {[%clk 0:02:43.1]}
11... Nb6 {[%clk 0:02:25.6]} 12. Bh3 {[%clk 0:02:42.1]} 12... Bd7 {[%clk
0:02:25.5]} 13. O-O {[%clk 0:02:41.2]} 13... Qb5 {[%clk 0:02:20.6]} 14. Qb4
{[%clk 0:02:37.5]} 14... Qxb4 {[%clk 0:02:15.5]} 15. axb4 {[%clk 0:02:33.5]}
15... Ba4 {[%clk 0:02:14.9]} 16. Ra2 {[%clk 0:02:31.9]} 16... a6 {[%clk
0:02:14.7]} 17. h5 {[%clk 0:02:30]} 17... h6 {[%clk 0:02:14.3]} 18. Nh4 {[%clk
0:02:29]} 18... Bd7 {[%clk 0:02:07.2]} 19. f4 {[%clk 0:02:28.7]} 19... f6 {[%clk
0:02:07.4]} 20. exf6 {[%clk 0:02:26.1]} 20... gxf6 {[%clk 0:02:08.3]} 21. f5
{[%clk 0:02:26.2]} 21... exf5 {[%clk 0:01:40.8]} 22. Nxf5 {[%clk 0:02:22.7]}
22... Nxf5 {[%clk 0:01:39.6]} 23. Bxf5 {[%clk 0:02:22.5]} 23... Bxf5 {[%clk
0:01:39.7]} 24. Rxf5 {[%clk 0:02:22.9]} 24... Kf7 {[%clk 0:01:38.7]} 25. Ra1
{[%clk 0:02:21.9]} 25... Rae8 {[%clk 0:01:38.6]} 26. Raf1 {[%clk 0:02:21]} 26...
Re6 {[%clk 0:01:38.7]} 27. Bf4 {[%clk 0:02:18.9]} 27... Kg7 {[%clk 0:01:35.5]}
0-1

[Event "*** SCC Grand Prix: Titled Tuesday Blitz"]
[Site "Chess.com"]
[Date "2020.06.23"]
[Round "8"]
[White "CarlssonLudvig"]
[Black "AndreyNeves"]
[Result "1-0"]
[WhiteElo "2428"]
[BlackElo "2202"]
[TimeControl "180+1"]
[EndTime "11:33:47 PDT"]
[Termination "CarlssonLudvig won by resignation"]

1. Nf3 {[%clk 0:03:00.9]} 1... d5 {[%clk 0:02:52.2]} 2. g3 {[%clk 0:03:00.3]}
2... Nf6 {[%clk 0:02:51.7]} 3. Bg2 {[%clk 0:03:00.2]} 3... g6 {[%clk 0:02:52.4]}
4. O-O {[%clk 0:02:59.1]} 4... Bg7 {[%clk 0:02:52.9]} 5. d4 {[%clk 0:02:56.2]}
5... O-O {[%clk 0:02:53.3]} 6. c3 {[%clk 0:02:54.9]} 6... b6 {[%clk 0:02:44.6]}
7. Nbd2 {[%clk 0:02:53.7]} 7... Bb7 {[%clk 0:02:43.7]} 8. Re1 {[%clk 0:02:48.5]}
8... Nbd7 {[%clk 0:02:42.5]} 9. e4 {[%clk 0:02:48.9]} 9... Nxe4 {[%clk
0:02:39.2]} 10. Nxe4 {[%clk 0:02:49.1]} 10... dxe4 {[%clk 0:02:39.5]} 11. Ng5
{[%clk 0:02:50]} 11... Nf6 {[%clk 0:02:35.8]} 12. Nxe4 {[%clk 0:02:49.8]} 12...
Nxe4 {[%clk 0:02:35.6]} 13. Bxe4 {[%clk 0:02:50.1]} 13... Bxe4 {[%clk
0:02:35.7]} 14. Rxe4 {[%clk 0:02:50.4]} 14... e6 {[%clk 0:02:34]} 15. Bf4 {[%clk
0:02:48.8]} 15... Qd5 {[%clk 0:02:26.5]} 16. Re1 {[%clk 0:02:45.2]} 16... c5
{[%clk 0:02:23.1]} 17. dxc5 {[%clk 0:02:44.9]} 17... bxc5 {[%clk 0:02:16.7]} 18.
Qxd5 {[%clk 0:02:38.1]} 18... exd5 {[%clk 0:02:16.2]} 19. Re7 {[%clk 0:02:34.9]}
19... d4 {[%clk 0:02:13.5]} 20. cxd4 {[%clk 0:02:31.4]} 20... Bxd4 {[%clk
0:01:56.8]} 21. Be5 {[%clk 0:02:27.3]} 21... Rfe8 {[%clk 0:01:53.1]} 22. Rxe8+
{[%clk 0:02:22.2]} 22... Rxe8 {[%clk 0:01:52.7]} 23. Bxd4 {[%clk 0:02:22.9]}
23... cxd4 {[%clk 0:01:52.8]} 24. Rd1 {[%clk 0:02:22.2]} 24... Rd8 {[%clk
0:01:37.1]} 25. Kf1 {[%clk 0:02:18.1]} 25... Kg7 {[%clk 0:01:37.1]} 26. Ke2
{[%clk 0:02:18.3]} 26... Kf6 {[%clk 0:01:37]} 27. Kd3 {[%clk 0:02:18.3]} 27...
Ke5 {[%clk 0:01:29.1]} 28. Re1+ {[%clk 0:02:18.4]} 28... Kd5 {[%clk 0:01:28.9]}
29. Re4 {[%clk 0:02:16.5]} 29... Kc5 {[%clk 0:01:27.2]} 30. Re5+ {[%clk
0:02:15.6]} 30... Rd5 {[%clk 0:00:41.7]} 31. Rxd5+ {[%clk 0:02:14]} 31... Kxd5
{[%clk 0:00:41.5]} 32. b4 {[%clk 0:02:13]} 32... a6 {[%clk 0:00:39.8]} 33. f4
{[%clk 0:02:05.3]} 33... f5 {[%clk 0:00:38.5]} 34. h3 {[%clk 0:02:04]} 34... h6
{[%clk 0:00:33.9]} 35. h4 {[%clk 0:02:03.4]} 35... h5 {[%clk 0:00:34.1]} 36. a3
{[%clk 0:02:03.1]} 36... Kc6 {[%clk 0:00:31.4]} 37. Kxd4 {[%clk 0:02:00.9]}
37... Kb5 {[%clk 0:00:32.3]} 38. Kc3 {[%clk 0:02:00.6]} 38... Ka4 {[%clk
0:00:33.2]} 39. Kb2 {[%clk 0:02:00.6]} 39... a5 {[%clk 0:00:29.4]} 40. bxa5
{[%clk 0:02:00.6]} 40... Kxa5 {[%clk 0:00:30.3]} 41. Kc3 {[%clk 0:02:01.2]}
41... Kb5 {[%clk 0:00:31.2]} 42. Kd4 {[%clk 0:02:02.1]} 42... Ka4 {[%clk
0:00:30.3]} 43. Ke5 {[%clk 0:02:02.5]} 43... Kxa3 {[%clk 0:00:31.2]} 44. Kf6
{[%clk 0:02:03.4]} 44... Kb4 {[%clk 0:00:32.1]} 45. Kxg6 {[%clk 0:02:03.8]}
45... Kc3 {[%clk 0:00:33]} 46. Kxf5 {[%clk 0:02:03.5]} 46... Kd2 {[%clk
0:00:33.9]} 47. Kg5 {[%clk 0:02:04]} 47... Ke1 {[%clk 0:00:34.8]} 48. Kxh5
{[%clk 0:02:04.4]} 48... Kf2 {[%clk 0:00:35.7]} 49. Kg4 {[%clk 0:02:04.6]} 49...
Ke2 {[%clk 0:00:35.2]} 50. h5 {[%clk 0:02:05.5]} 50... Kd2 {[%clk 0:00:36.1]}
51. h6 {[%clk 0:02:06.4]} 51... Kc2 {[%clk 0:00:36.5]} 52. h7 {[%clk 0:02:07.3]}
52... Kb2 {[%clk 0:00:37.4]} 53. h8=Q+ {[%clk 0:02:08.2]} 1-0

[Event "*** SCC Grand Prix: Titled Tuesday Blitz"]
[Site "Chess.com"]
[Date "2020.06.23"]
[Round "8"]
[White "felipelobo"]
[Black "j_coca"]
[Result "0-1"]
[WhiteElo "2098"]
[BlackElo "2196"]
[TimeControl "180+1"]
[EndTime "11:33:54 PDT"]
[Termination "j_coca won on time"]

1. e4 {[%clk 0:03:00.9]} 1... g6 {[%clk 0:02:59.2]} 2. d4 {[%clk 0:02:59.4]}
2... Bg7 {[%clk 0:02:59.4]} 3. Nc3 {[%clk 0:02:59.3]} 3... d6 {[%clk 0:02:59.4]}
4. Be3 {[%clk 0:02:59.6]} 4... Nc6 {[%clk 0:02:59.4]} 5. Qd2 {[%clk 0:02:55.4]}
5... e5 {[%clk 0:02:57.9]} 6. Nge2 {[%clk 0:02:51.4]} 6... f5 {[%clk 0:02:57]}
7. f3 {[%clk 0:02:48.9]} 7... Nf6 {[%clk 0:02:56.6]} 8. d5 {[%clk 0:02:45]} 8...
Ne7 {[%clk 0:02:56.3]} 9. Bh6 {[%clk 0:02:40.2]} 9... O-O {[%clk 0:02:54.3]} 10.
O-O-O {[%clk 0:02:33.9]} 10... a6 {[%clk 0:02:53.7]} 11. h4 {[%clk 0:02:22.6]}
11... b5 {[%clk 0:02:50.1]} 12. h5 {[%clk 0:02:02.4]} 12... Nxh5 {[%clk
0:02:48.2]} 13. Bxg7 {[%clk 0:01:33.2]} 13... Kxg7 {[%clk 0:02:40]} 14. Qg5
{[%clk 0:01:20.4]} 14... Nf6 {[%clk 0:02:27.3]} 15. Ng3 {[%clk 0:01:04.5]} 15...
f4 {[%clk 0:02:23.7]} 16. Nh5+ {[%clk 0:00:41.1]} 16... Nxh5 {[%clk 0:02:23.1]}
17. Rxh5 {[%clk 0:00:41.2]} 17... Ng8 {[%clk 0:02:20.8]} 18. Qxd8 {[%clk
0:00:20.3]} 18... Rxd8 {[%clk 0:02:21.7]} 19. Rh4 {[%clk 0:00:20.4]} 19... g5
{[%clk 0:02:18.4]} 20. Rh5 {[%clk 0:00:19.3]} 20... h6 {[%clk 0:02:17.9]} 21.
Be2 {[%clk 0:00:17.2]} 21... Nf6 {[%clk 0:02:17.9]} 22. Rh2 {[%clk 0:00:16]}
22... h5 {[%clk 0:02:18.2]} 23. Rdh1 {[%clk 0:00:15.6]} 23... h4 {[%clk
0:02:18.2]} 24. Nd1 {[%clk 0:00:13.7]} 24... Bd7 {[%clk 0:02:17]} 25. Nf2 {[%clk
0:00:13.5]} 25... Rh8 {[%clk 0:02:16.3]} 26. Nh3 {[%clk 0:00:13.4]} 26... Bxh3
{[%clk 0:02:15.7]} 27. gxh3 {[%clk 0:00:12.6]} 27... Nh5 {[%clk 0:02:15.5]} 28.
Rg2 {[%clk 0:00:10.2]} 28... Ng3 {[%clk 0:02:15.9]} 29. Rd1 {[%clk 0:00:09.4]}
29... Rhc8 {[%clk 0:02:15.6]} 30. Kb1 {[%clk 0:00:08.4]} 30... Kf6 {[%clk
0:02:16]} 31. c3 {[%clk 0:00:07.5]} 31... Ke7 {[%clk 0:02:16.2]} 32. Bd3 {[%clk
0:00:07.4]} 32... c6 {[%clk 0:02:15.8]} 33. dxc6 {[%clk 0:00:06.3]} 33... Rxc6
{[%clk 0:02:16.7]} 34. Bc2 {[%clk 0:00:06.5]} 34... Rd8 {[%clk 0:02:17.1]} 35.
Rgd2 {[%clk 0:00:06.2]} 35... a5 {[%clk 0:02:14.6]} 36. Bb3 {[%clk 0:00:05.3]}
36... a4 {[%clk 0:02:10.9]} 37. Bd5 {[%clk 0:00:05]} 37... Rc5 {[%clk 0:02:11]}
38. b3 {[%clk 0:00:02.6]} 38... axb3 {[%clk 0:02:09.3]} 39. axb3 {[%clk
0:00:03.5]} 39... Rxc3 {[%clk 0:02:09.3]} 40. Rd3 {[%clk 0:00:03.4]} 40... Rxd3
{[%clk 0:02:08.9]} 41. Rxd3 {[%clk 0:00:04.3]} 41... Ne2 {[%clk 0:02:08]} 42.
Kb2 {[%clk 0:00:03]} 42... Nd4 {[%clk 0:02:07.2]} 43. Rc3 {[%clk 0:00:02.4]}
43... Kd7 {[%clk 0:02:03.9]} 0-1